[Event "Candidates Tournament"]
[Site "Khanty-Mansiysk"]
[Date "2014.03.15"]
[Round "3"]
[White "Svidler, Peter"]
[Black "Kramnik, Vladimir"]
[Result "1/2-1/2"]
[ECO "A39"]
[WhiteElo "2758"]
[BlackElo "2787"]
[Annotator "Marin,M"]
[PlyCount "101"]
[EventDate "2014.03.13"]
[EventType "tourn"]
[EventRounds "14"]
[EventCountry "RUS"]
[EventCategory "21"]
[SourceTitle "CBM 160"]
[Source "ChessBase"]
[SourceDate "2014.05.15"]
[SourceVersion "1"]
[SourceVersionDate "2014.05.15"]
[SourceQuality "1"]
[TimeControl "40/7200:20/3600:900+30"]
[WhiteClock "0:18:15"]
[BlackClock "0:23:05"]

1. c4 {[%emt 0:00:05]} c5 {[%emt 0:00:41]} 2. Nf3 {[%emt 0:00:13]} Nf6 {
[%emt 0:01:12]} 3. Nc3 {[%emt 0:00:07]} Nc6 {[%emt 0:00:14]} 4. g3 {[%emt 0:00:
09]} g6 {[%emt 0:04:14]} 5. d4 {[%emt 0:04:04]} cxd4 {[%emt 0:01:14]} 6. Nxd4 {
[%emt 0:00:08]} Bg7 {[%emt 0:02:31]} 7. Bg2 {[%emt 0:00:16]} O-O {[%emt 0:00:
10]} 8. O-O {[%emt 0:00:03]} Nxd4 {[%emt 0:00:42]} 9. Qxd4 {[%emt 0:00:13]} d6
{[%emt 0:00:02]} 10. Qd3 {[%emt 0:02:57]} Be6 $5 {[%emt 0:01:41]} ({Black
usually develops the bishop after} 10... a6 {possibly followed by ...Rb8. A
recent game went} 11. Bg5 $5 (11. Bd2) (11. Be3) 11... Rb8 12. a4 {1-0 (59)
Edouard,R (2653)-Mista,A (2582) Germany 2013 CBM 158 [Meyer,CD]}) 11. Bd2 {
[%emt 0:13:42]} ({There is nothing wrong with taking the pawn. Black is mainly
struggling, but maybe concrete analysis proves he can reach an equality after
long forced lines.} 11. Bxb7 Rb8 12. Bg2 Qa5 13. b3 Rxb3 14. axb3 Qxa1 15. Nb5
(15. Bd2 {Donaldson,J (2399)-Watson,J (2345) Seattle 2003 CBM 093 [Ribli] (1/
2-1/2, 28)}) (15. Be3 Qa5 16. Nb5 Bf5 17. Qd1 a6 18. Nd4 Bd7 19. Qa1 Qb4 20.
Qxa6 Ng4 $44 {Palac,M (2561)-Rogulj,B (2418) Zagreb 2014 (1/2-1/2, 22)}) 15...
Qa2 16. Nd4 Bd7 $14 {(1-0, 38) Cyborowski,L (2564)-Kovalev,A (2572) Krakow 2004
}) 11... Qc8 {[%emt 0:00:58][%csl Gc4][%cal Ge6h3]} ({It is worth mentioning
that Kramnik had had this position with White in a blitz game:} 11... Qd7 12.
Rfd1 Ng4 13. b3 Ne5 14. Qe4 Rab8 15. Rac1 Bf5 16. Qh4 Bf6 17. Bg5 Bxg5 18. Qxg5
$14 {Kramnik-Anand, Moscow (blitz) 2009}) 12. b3 {[%emt 0:00:36]} Bh3 {[%emt 0:
00:10] White somewhat relieves White's pressure after exchanging the second
minor piece, but the space advantage has a long term character.} 13. Rac1 {
[%emt 0:00:45]} (13. Rad1 Bxg2 14. Kxg2 a6 15. a4 $14 {1/2-1/2 (31) Romanishin,
O (2600)-Neverov,V (2515) Donetsk 1998 CBM 068 [Ribli]}) 13... Bxg2 {[%emt 0:
01:48]} 14. Kxg2 {[%emt 0:00:11]} Qc6+ $146 {[%emt 0:10:53] This novelty does
not change anything essentially.} (14... Rd8 15. Rfd1 Rd7 16. e4 Ng4 17. Qe2
Ne5 18. f4 Nc6 19. Be3 b6 20. h4 Qb7 21. h5 e6 22. Qf3 Re8 23. Rd2 $14 a6 $6
24. Na4 {For reasons I do not understand now, in Marin-Lupu, Manresa 1996 I
accompanied the last move with a draw offer, which was immediately accepted.
Being a Hedgehog player with Black myself, I probably overestimated the
counterplay based on} b5 {In fact, after} 25. Nb6 Rdd8 26. Rcd1 $16) (14... e6
15. Rfd1 Rd8 16. Bg5 Rd7 17. Bxf6 $5 {This could have eventually led to
brilliancies.} (17. Qf3 Ne8 18. Rd3 Qc6 19. e4 Rc8 20. a4 {Neverov,V (2490)
-Dvoirys,S (2550) St Petersburg 1995 (1/2-1/2, 31)}) 17... Bxf6 18. Qf3 Bxc3 $6
(18... Bg7 19. Ne4 Qc6 20. h4 {offers White only some light pressure.}) 19.
Rxc3 Qc5 20. Qf6 Rc8 21. Rf3 $14 b5 $2 {In Jirovsky,M (2420)-Neverov,V (2515)
Lazne Bohdanec 1996 (1-0, 49) this thematic break could once again have led to
disastrous consequences.} 22. cxb5 Qxb5 23. Rxd6 $3 Rxd6 24. Qxf7+ Kh8 25. Qe7
$3 Qd5 $8 (25... Qd7 26. Rf8+ Rxf8 27. Qxf8#) (25... Rdd8 26. Rf7 $18) 26. e4
$1 Qxe4 27. Qxd6 $18) 15. f3 {[%emt 0:10:03]} e6 {[%emt 0:05:04][%csl Gd5,Rd6]}
16. Rfd1 {[%emt 0:03:16]} Rad8 {[%emt 0:07:25]} 17. Bf4 {[%emt 0:11:53]} Rd7 {
[%emt 0:12:05]} 18. Qe3 {[%emt 0:05:39][%cal Gf4h6,Gd1d4,Gd4h4]} (18. e4 $14)
18... b6 {[%emt 0:09:47]} 19. Rd3 {[%emt 0:04:39]} Rc8 {[%emt 0:10:22]} 20. Qd2
{[%emt 0:10:42]} Ne8 {[%emt 0:03:07]} 21. e4 $14 {[%emt 0:04:35][%csl Gd6]
Play is rather one-sided. Black's attempt to undermine the white space
advantage with ...b6-b5 will only create new weaknesses.} a6 $6 {[%emt 0:09:54]
[%csl Gb6,Gc5]} (21... Qc5 $5 {[%csl Ge5][%cal Yc5h5,Yc5a5]} 22. Rd1 Rcd8 23.
h4 $14) 22. e5 {[%emt 0:19:04]} h6 {[%emt 0:01:54]} 23. h4 {[%emt 0:05:40]}
Rcd8 {[%emt 0:06:21]} 24. Rd1 {[%emt 0:01:58]} b5 {[%emt 0:00:25]} (24... Kh7
25. a4 $16) 25. c5 $1 {[%emt 0:05:55] After this thematic break, the game will
oscillate between +/- and +/= until eventually reaching = by means of !!} Qxc5
{[%emt 0:03:13]} (25... d5 26. b4 $16 {[%cal Gc3e2,Ge2d4]}) 26. Ne4 {[%emt 0:
00:05]} Qb6 {[%emt 0:01:21]} 27. Nxd6 {[%emt 0:01:11]} (27. Be3 Qb8 28. Nc5 $1
Bxe5 (28... Ra7 29. exd6 $18) 29. Nxd7 Rxd7 30. Bxh6 {[%cal Gh4h5] /\h5} Nf6
31. Re1 {[%cal Ge1e5]} Qb7 32. h5 $1 $16 Nxh5 $2 33. Rxe5 $1) 27... Bf8 {
[%emt 0:04:55]} 28. h5 {[%emt 0:04:32]} (28. Bxh6 $6 Nxd6 29. Bxf8 Ne4 $1) (28.
Be3 Qb8 29. Bxh6 Nxd6 30. Bg5 Ne4 31. Rxd7 Nxd2 32. Rxd8 Qxe5 33. R1xd2 Kg7 $14
{[%csl Gg2]}) (28. Nc8 $1 Rxd3 29. Nxb6 Rxd2+ 30. Rxd2 Rxd2+ 31. Bxd2 Nc7 32.
Nd7 $16 {[%csl Ra6,Rg8][%cal Gg2f1,Gf1e2,Ge2d3,Yd7b8,Yd2a5]}) 28... Nxd6 {
[%emt 0:06:33]} (28... g5 $2 29. Bxg5 hxg5 30. Qxg5+ Kh8 31. Nxe8 $1 Rxd3 32.
Nf6 Bg7 33. h6 $18) 29. exd6 {[%emt 0:00:30]} g5 {[%emt 0:02:53]} 30. Be5 {
[%emt 0:00:20]} Rc8 {[%emt 0:02:37]} (30... Bg7 $1 $14) 31. Rc1 {[%emt 0:01:14]
} Rxc1 {[%emt 0:01:00]} 32. Qxc1 {[%emt 0:00:01]} Qb7 {[%emt 0:01:04]} (32...
Bxd6 33. Qd1 (33. Qd2 $2 Bb4 $1) 33... Bxe5 34. Rxd7) (32... Bg7 33. Bxg7 (33.
Qc7 $5 Rxc7 34. dxc7 Bxe5 35. c8=Q+ Kg7 $14) 33... Kxg7 34. Qc3+ Kg8 35. Qc8+
Rd8 36. Qc7 Qb8 37. Kf2 $16) 33. g4 {[%emt 0:01:46]} b4 {[%emt 0:00:19]} 34.
Qc4 {[%emt 0:00:35]} Bg7 {[%emt 0:00:44]} 35. Bg3 {[%emt 0:00:40]} (35. Bxg7
Kxg7 $14) 35... Qb5 {[%emt 0:00:36]} 36. Be1 {[%emt 0:00:27]} (36. Qxb5 axb5
37. f4 gxf4 38. Bxf4 $16) 36... Qe5 {[%emt 0:00:42]} 37. Bg3 {[%emt 0:01:07]}
Qe2+ {[%emt 0:00:17]} 38. Bf2 {[%emt 0:00:01]} Bf8 {[%emt 0:00:07]} 39. Qxa6 {
[%emt 0:00:24]} e5 $6 {[%emt 0:00:26]} ({The counterplay started with this
move will result in a briliancy, but the simple} 39... Qe5 $1 $11 {would have
retrieved the pawn and saved the game at once.}) 40. Qc4 {[%emt 0:00:00]} Qxa2
{[%emt 0:00:00]} 41. Qc6 $2 {[%emt 0:12:32]} (41. Qxb4 $16) 41... e4 $1 {
[%emt 0:04:49]} 42. fxe4 {[%emt 0:00:40]} Qe2 {[%emt 0:00:35]} 43. Rf3 {
[%emt 0:00:24]} Rxd6 {[%emt 0:02:30]} 44. Qe8 {[%emt 0:00:21]} f6 {[%emt 0:01:
06]} 45. e5 {[%emt 0:00:34] Svidler must have put big hopes in this pawn break.
The threat is Qg6+ followed by exd6 and the black rook does not have safe
squares along the sixth rank.} f5 $3 {[%emt 0:16:01]} (45... Qxe5 46. Qxe5 fxe5
47. Rxf8+ Kxf8 48. Bc5 Ke7 49. Bxb4 $1 $18) (45... Ra6 46. Qc8 Rb6 47. Qf5 {
[%cal Ge5f6]}) (45... Rb6 46. Kg3 {[%cal Gf2b6]} Ra6 47. Re3 {[%cal Ge5e6]})
46. gxf5 {[%emt 0:01:04]} Rf6 $1 {[%emt 0:03:16]} 47. Kg3 {[%emt 0:12:30]} (47.
Re3 Qg4+ 48. Bg3 Ra6 $1 $132 {[%cal Ga6a2]}) 47... Qe4 {[%emt 0:02:06]} 48. Bc5
{[%emt 0:02:11]} Qe1+ {[%emt 0:05:56]} 49. Bf2 {[%emt 0:02:25]} Qe4 {[%emt 0:
00:50]} 50. Bc5 {[%emt 0:00:08]} Qe1+ {[%emt 0:00:05]} 51. Bf2 {[%emt 0:09:10]}
1/2-1/2

[Event "Candidates Tournament"]
[Site "Khanty-Mansiysk"]
[Date "2014.03.17"]
[Round "4"]
[White "Anand, Viswanathan"]
[Black "Kramnik, Vladimir"]
[Result "1/2-1/2"]
[ECO "D39"]
[WhiteElo "2770"]
[BlackElo "2787"]
[Annotator "ChessBase Website"]
[PlyCount "60"]
[EventDate "2014.03.13"]
[EventType "tourn"]
[EventRounds "14"]
[EventCountry "RUS"]
[EventCategory "21"]
[SourceTitle "CBM 160"]
[Source "ChessBase"]
[SourceDate "2014.05.15"]
[SourceVersion "1"]
[SourceVersionDate "2014.05.15"]
[SourceQuality "1"]
[TimeControl "40/7200:20/3600:900+30"]
[WhiteClock "1:04:51"]
[BlackClock "1:23:48"]

1. d4 {[%emt 0:00:08] A fabulous and exciting game, which was unfortunately
rather short. Kramnik busted out his Vienna which is a sharp and interesting
line, accepting a pawn sacrifice for which White obtains a strong initiative.
Anand's opening was not the best and it allowed Kramnik a creative and
powerful counterplay that resulted in a perpetual check.} Nf6 {[%emt 0:00:13]}
2. c4 {[%emt 0:00:16]} e6 {[%emt 0:00:06]} 3. Nf3 {[%emt 0:00:18]} d5 {[%emt 0:
00:52]} 4. Nc3 {[%emt 0:00:13]} dxc4 {[%emt 0:03:57]} 5. e4 {[%emt 0:09:15]}
Bb4 {[%emt 0:00:08]} 6. Bg5 {[%emt 0:00:42]} c5 {[%emt 0:00:25]} 7. Bxc4 {
[%emt 0:00:46]} cxd4 {[%emt 0:00:13]} 8. Nxd4 {[%emt 0:00:11]} Bxc3+ {[%emt 0:
01:18]} 9. bxc3 {[%emt 0:00:14]} Qa5 {[%emt 0:00:02]} 10. Bb5+ {[%emt 0:01:00]}
Nbd7 {[%emt 0:02:31]} 11. Bxf6 {[%emt 0:00:30]} Qxc3+ {[%emt 0:00:37]} 12. Kf1
{[%emt 0:00:17]} gxf6 {[%emt 0:00:07]} 13. h4 {[%emt 0:01:27]} a6 {[%emt 0:01:
03]} 14. Rh3 {[%emt 0:03:13]} Qb4 {[%emt 0:00:55]} 15. Be2 {[%emt 0:01:09]} Ne5
{[%emt 0:02:48]} 16. h5 {[%emt 0:08:12]} (16. Rc1 Qd6 17. Rc2 Bd7 18. Rd2 Qc7
19. Rc2 Qd6 20. Rd2 Qc7 21. Rc2 {1/2-1/2 (21) Grischuk,A (2746)-Kramnik,V 
(2781) Moscow 2011}) 16... Qd6 {[%emt 0:09:27]} 17. Qd2 {[%emt 0:02:31]} Nc6 {
[%emt 0:01:17]} 18. Rd3 {[%emt 0:02:03]} Qh2 {[%emt 0:00:14]} 19. f4 {[%emt 0:
10:05]} Rg8 {[%emt 0:00:32]} 20. Bf3 {[%emt 0:01:30]} Bd7 {[%emt 0:01:26]} 21.
Ne2 {[%emt 0:07:21]} Qh1+ {[%emt 0:03:58]} 22. Ng1 {[%emt 0:00:21]} Nd4 {
[%emt 0:00:10]} 23. Rxd4 {[%emt 0:02:04]} Bb5+ {[%emt 0:01:11]} 24. Kf2 {
[%emt 0:00:14]} Qh4+ {[%emt 0:00:12]} 25. Ke3 {[%emt 0:00:07]} e5 {[%emt 0:00:
18]} 26. fxe5 {[%emt 0:00:22]} Qg5+ {[%emt 0:00:42]} 27. Kf2 {[%emt 0:00:06]}
Qg3+ {[%emt 0:00:09]} 28. Ke3 {[%emt 0:00:09]} Qg5+ {[%emt 0:01:16]} 29. Kf2 {
[%emt 0:00:13]} Qg3+ {[%emt 0:00:02]} 30. Ke3 {[%emt 0:00:12]} Qg5+ {[%emt 0:
00:03]} 1/2-1/2

[Event "Candidates Tournament"]
[Site "Khanty-Mansiysk"]
[Date "2014.03.18"]
[Round "5"]
[White "Andreikin, Dmitry"]
[Black "Anand, Viswanathan"]
[Result "1/2-1/2"]
[ECO "C65"]
[WhiteElo "2709"]
[BlackElo "2770"]
[Annotator "ChessBase Website"]
[PlyCount "84"]
[EventDate "2014.03.13"]
[EventType "tourn"]
[EventRounds "14"]
[EventCountry "RUS"]
[EventCategory "21"]
[SourceTitle "CBM 160"]
[Source "ChessBase"]
[SourceDate "2014.05.15"]
[SourceVersion "1"]
[SourceVersionDate "2014.05.15"]
[SourceQuality "1"]
[TimeControl "40/7200:20/3600:900+30"]
[WhiteClock "0:32:08"]
[BlackClock "1:18:36"]

1. e4 {[%emt 0:00:06]} e5 {[%emt 0:00:11]} 2. Nf3 {[%emt 0:00:12]} Nc6 {
[%emt 0:00:07]} 3. Bb5 {[%emt 0:00:11]} Nf6 {[%emt 0:00:10]} 4. d3 {[%emt 0:00:
31] Andreikin's anti-Berlin left much to be desired and he was slowly
outplayed by Anand. He was able to pull himself together and organize a solid
defense, but Black's position was always superior. The simplification to the
endgame was well timed by the Russian and although it is arguable that Anand
could have pressed the final position a little, it was surely a drawn endgame.}
Bc5 {[%emt 0:00:10]} 5. Bxc6 {[%emt 0:00:25]} dxc6 {[%emt 0:00:09]} 6. Be3 {
[%emt 0:00:09]} (6. h3 Nd7 7. Be3 Bd6 8. Nc3 c5 9. O-O Nf8 10. Nd2 Ng6 11. Nc4
Be6 12. Ne2 Qd7 13. Nxd6+ cxd6 14. f4 exf4 15. Nxf4 Nxf4 16. Rxf4 b6 17. Qh5 d5
18. d4 c4 19. b3 Qc6 20. Raf1 O-O-O 21. bxc4 Qxc4 22. Rxf7 Bxf7 23. Rxf7 Rd7
24. Rxd7 Kxd7 25. exd5 g6 26. Qg4+ Kc7 27. Qe6 Kb7 28. Qe7+ Qc7 29. Qe4 Qd7 30.
d6+ Ka6 31. Bf4 Rc8 32. Kh2 Rc4 33. Bg3 Rc8 34. Qd3+ Kb7 35. c4 Qc6 {Carlsen,M
(2872)-Caruana,F (2782) Zuerich 2014 1-0}) 6... Bxe3 {[%emt 0:01:40]} 7. fxe3 {
[%emt 0:00:08]} Qe7 {[%emt 0:00:27]} 8. O-O {[%emt 0:01:48]} O-O $146 {[%emt 0:
00:26]} (8... Ng4 9. Qd2 f6 10. Nh4 g6 11. Nc3 Bd7 12. Rf3 f5 13. g3 Nf6 14.
exf5 g5 15. Ng2 e4 16. Nxe4 Nxe4 17. dxe4 O-O-O 18. Qa5 Qxe4 19. Qxa7 Bxf5 20.
Raf1 Bh3 21. Qa8+ Kd7 22. Qa3 Kc8 23. Qa8+ Kd7 24. Rf7+ Ke8 25. Rf8+ Rxf8 26.
Rxf8+ Kxf8 27. Qxd8+ Kf7 28. Qd2 Ke8 29. Ne1 Qc4 30. Qd3 Qb4 31. Nf3 Qxb2 32.
Nxg5 Qa1+ 33. Kf2 Qf6+ 34. Nf3 Bf5 35. Qd4 Qf7 36. Qh8+ Ke7 37. Qe5+ Kd7 38.
Qd4+ {Sutovsky,E (2655)-Carlsen,M (2714) Heraklio 2007 1/2-1/2 (86)}) 9. Qe1 {
[%emt 0:02:48]} Ne8 {[%emt 0:04:00]} 10. Qc3 {[%emt 0:14:44]} f6 {[%emt 0:00:
30]} 11. b4 {[%emt 0:01:40]} Nd6 {[%emt 0:03:40]} 12. a4 {[%emt 0:00:23]} Bd7 {
[%emt 0:02:33]} 13. Nbd2 {[%emt 0:01:17]} b6 {[%emt 0:01:55]} 14. a5 {[%emt 0:
00:52]} Kh8 {[%emt 0:10:16]} 15. Ra2 {[%emt 0:06:34]} Rab8 {[%emt 0:06:35]} 16.
axb6 {[%emt 0:12:41]} axb6 {[%emt 0:00:15]} 17. Qa1 {[%emt 0:05:23]} Nb7 {
[%emt 0:02:39]} 18. Qc3 {[%emt 0:08:01]} c5 {[%emt 0:01:31]} 19. bxc5 {[%emt 0:
00:12]} Nxc5 {[%emt 0:01:09]} 20. Ra7 {[%emt 0:00:33]} Rfc8 {[%emt 0:02:30]}
21. Rfa1 {[%emt 0:02:25]} b5 {[%emt 0:07:26]} 22. d4 {[%emt 0:27:17]} exd4 {
[%emt 0:05:45]} 23. exd4 {[%emt 0:02:30]} Nxe4 {[%emt 0:02:10]} 24. Nxe4 {
[%emt 0:01:02]} Qxe4 {[%emt 0:00:08]} 25. Rxc7 {[%emt 0:00:30]} Bf5 {[%emt 0:
08:25]} 26. Raa7 {[%emt 0:04:59]} h6 {[%emt 0:05:00]} 27. Qd2 {[%emt 0:03:09]}
Rxc7 {[%emt 0:00:37]} 28. Rxc7 {[%emt 0:00:05]} Bg4 {[%emt 0:03:01]} 29. Rc3 {
[%emt 0:03:43]} b4 {[%emt 0:02:36]} 30. Re3 {[%emt 0:02:52]} Qd5 {[%emt 0:00:
22]} 31. h3 {[%emt 0:01:24]} Bf5 {[%emt 0:00:16]} 32. Rb3 {[%emt 0:01:56]} Qc4
{[%emt 0:02:13]} 33. Rb2 {[%emt 0:00:55]} Be4 {[%emt 0:01:15]} 34. Kf2 {
[%emt 0:02:26]} Bxf3 {[%emt 0:06:42]} 35. Kxf3 {[%emt 0:01:39]} Rb5 {[%emt 0:
01:36]} 36. Qd3 {[%emt 0:00:59]} Qxd3+ {[%emt 0:07:41]} 37. cxd3 {[%emt 0:00:
06]} Kg8 {[%emt 0:00:30]} 38. d5 {[%emt 0:01:09]} Kf7 {[%emt 0:00:22]} 39. Ke4
{[%emt 0:00:42]} Ke7 {[%emt 0:00:11]} 40. Kd4 {[%emt 0:00:00]} Kd6 {[%emt 0:00:
00]} 41. Kc4 {[%emt 0:29:20]} Rc5+ {[%emt 0:03:13]} 42. Kd4 {[%emt 0:00:06]}
Rxd5+ {[%emt 0:01:02]} 1/2-1/2

[Event "Candidates Tournament"]
[Site "Khanty-Mansiysk"]
[Date "2014.03.19"]
[Round "6"]
[White "Anand, Viswanathan"]
[Black "Karjakin, Sergey"]
[Result "1/2-1/2"]
[ECO "C67"]
[WhiteElo "2770"]
[BlackElo "2766"]
[Annotator "ChessBase Website"]
[PlyCount "66"]
[EventDate "2014.03.13"]
[EventType "tourn"]
[EventRounds "14"]
[EventCountry "RUS"]
[EventCategory "21"]
[SourceTitle "CBM 160"]
[Source "ChessBase"]
[SourceDate "2014.05.15"]
[SourceVersion "1"]
[SourceVersionDate "2014.05.15"]
[SourceQuality "1"]
[TimeControl "40/7200:20/3600:900+30"]
[WhiteClock "0:51:11"]
[BlackClock "0:23:17"]

1. e4 {[%emt 0:00:03]} e5 {[%emt 0:00:07]} 2. Nf3 {[%emt 0:00:07]} Nc6 {
[%emt 0:00:03]} 3. Bb5 {[%emt 0:00:07]} Nf6 {[%emt 0:00:06]} 4. O-O {[%emt 0:
00:25]} Nxe4 {[%emt 0:00:04]} 5. d4 {[%emt 0:00:08]} Nd6 {[%emt 0:00:08]} 6.
Bxc6 {[%emt 0:00:07]} dxc6 {[%emt 0:00:05]} 7. dxe5 {[%emt 0:00:08]} Nf5 {
[%emt 0:00:06]} 8. Qxd8+ {[%emt 0:00:08]} Kxd8 {[%emt 0:00:07]} 9. h3 {[%emt 0:
00:08]} Ke8 {[%emt 0:00:52]} 10. Nc3 {[%emt 0:00:16]} h5 {[%emt 0:00:08]} 11.
Bf4 {[%emt 0:00:17]} (11. Ne2 Be7 12. Re1 Be6 13. Ned4 Nxd4 14. Nxd4 Bc8 15.
Bf4 c5 16. Nb5 Bd8 17. e6 Bxe6 18. Rad1 Ke7 19. Nxc7 Bxc7 20. Bxc7 Rac8 21.
Bd6+ {1/2-1/2 (21) Fressinet,L (2710)-Giri,A (2749) Germany 2014}) 11... Be7 {
[%emt 0:01:20]} 12. Rad1 {[%emt 0:00:24]} Be6 {[%emt 0:00:54]} 13. Ng5 {
[%emt 0:00:42]} Rh6 {[%emt 0:00:10]} 14. Rfe1 {[%emt 0:00:15]} Bb4 {[%emt 0:00:
48]} 15. g4 {[%emt 0:00:24] Anand prepared a long variation against the Berlin
endgame, but Karjakin responded in the most logical and ultra-solid way. The
Indian player was unable to prove any kind of advantage and the players agreed
to a draw in a position that already seemed completely locked up by Black's
passive but untouchable pieces.} hxg4 {[%emt 0:00:10]} 16. hxg4 {[%emt 0:00:08]
} Ne7 {[%emt 0:00:18]} 17. Nxe6 {[%emt 0:00:25]} Rxe6 {[%emt 0:00:08]} 18. Kg2
{[%emt 0:00:12]} Bxc3 {[%emt 0:02:38]} 19. bxc3 {[%emt 0:01:14]} Rd8 {[%emt 0:
09:47]} 20. Rxd8+ $146 {[%emt 0:01:07]} (20. Rb1 b5 21. Kg3 Rd5 22. c4 Rc5 23.
Re4 a6 24. Rb3 Ng6 25. Ra3 f6 26. Rxa6 Nxf4 27. Kxf4 Rexe5 28. Rxe5+ fxe5+ 29.
Kf5 Kf7 30. Ra7 g6+ 31. Kg5 e4+ 32. Kh6 Rxc4 33. Rxc7+ Ke6 34. g5 Rxc2 35. Kxg6
Rxf2 36. Rxc6+ Kd5 37. Rb6 Kc5 38. Re6 Kd4 39. Rd6+ Kc5 40. Re6 Kd4 41. Rd6+
Kc5 42. Re6 {1/2-1/2 (42) Karjakin,S (2786)-Grischuk,A (2764) Moscow 2013})
20... Kxd8 {[%emt 0:01:17]} 21. Rh1 {[%emt 0:00:09]} Nd5 {[%emt 0:23:50]} 22.
Bg3 {[%emt 0:03:21]} g5 {[%emt 0:06:03]} 23. c4 {[%emt 0:09:49]} Nc3 {[%emt 0:
06:47]} 24. Kf3 {[%emt 0:14:47]} Rg6 {[%emt 0:23:40]} 25. a3 {[%emt 0:08:06]}
Na4 {[%emt 0:09:06]} 26. Ke4 {[%emt 0:05:28]} Nc5+ {[%emt 0:00:30]} 27. Kf5 {
[%emt 0:00:11]} Ne6 {[%emt 0:00:22]} 28. Rh8+ {[%emt 0:06:53]} Kd7 {[%emt 0:00:
16]} 29. c3 {[%emt 0:09:46]} Ng7+ {[%emt 0:03:45]} 30. Ke4 {[%emt 0:00:15]} Ne6
{[%emt 0:00:04]} 31. f3 {[%emt 0:02:04]} c5 {[%emt 0:00:37]} 32. Bf2 {[%emt 0:
00:19]} a6 {[%emt 0:02:22]} 33. Be3 {[%emt 0:00:56]} b6 {[%emt 0:00:05]}
1/2-1/2

[Event "Candidates Tournament"]
[Site "Khanty-Mansiysk"]
[Date "2014.03.22"]
[Round "8"]
[White "Aronian, Levon"]
[Black "Anand, Viswanathan"]
[Result "1/2-1/2"]
[ECO "A11"]
[WhiteElo "2830"]
[BlackElo "2770"]
[Annotator "ChessBase Website"]
[PlyCount "37"]
[EventDate "2014.03.13"]
[EventType "tourn"]
[EventRounds "14"]
[EventCountry "RUS"]
[EventCategory "21"]
[SourceTitle "CBM 160"]
[Source "ChessBase"]
[SourceDate "2014.05.15"]
[SourceVersion "1"]
[SourceVersionDate "2014.05.15"]
[SourceQuality "1"]
[TimeControl "40/7200:20/3600:900+30"]
[WhiteClock "0:59:26"]
[BlackClock "0:56:56"]

1. c4 {[%emt 0:00:04]} c6 {[%emt 0:00:06]} 2. Nf3 {[%emt 0:00:05]} d5 {[%emt 0:
00:06]} 3. Qb3 {[%emt 0:00:05] Without a doubt this was a letdown for the
spectators. Aronian quickly went pawn hunting in a very strange opening but as
a result of this his position was completely tied down. Anand didn't have any
good break-through plans but he probably wasn't worried about any plans that
Aronian might have as the Armenian lacked space. An unusual repetition ensued
on move 15 and the game was drawn.} (3. d4 Nf6 4. e3 Bg4 5. Nc3 e6 6. h3 Bh5 7.
g4 Bg6 8. cxd5 Nxd5 9. Ne5 Bb4 10. Bd2 Nd7 11. Nxg6 hxg6 12. a3 Ba5 13. Bg2 g5
14. Qc2 Rc8 15. Rd1 Bc7 16. Ne2 Nf8 17. Qb3 Rb8 18. e4 Nf4 19. Bxf4 Bxf4 20. h4
e5 21. d5 Ng6 22. dxc6 Qa5+ 23. Nc3 O-O 24. cxb7 Qc7 25. Nd5 Qxb7 26. Qxb7 Rxb7
27. b4 gxh4 28. Bf1 Bg5 29. Rh3 Rd8 30. Bc4 Rbb8 31. Rhd3 Rdc8 32. Bb3 Rb7 {
Caruana,F (2782)-Anand,V (2773) Zuerich 2014 1/2-1/2}) 3... d4 $146 {[%emt 0:
05:06]} 4. e3 {[%emt 0:00:20]} c5 {[%emt 0:03:45]} 5. Qb5+ {[%emt 0:00:06]} Nc6
{[%emt 0:00:12]} 6. Qxc5 {[%emt 0:00:05]} e5 {[%emt 0:00:13]} 7. Qb5 {[%emt 0:
00:04]} a6 {[%emt 0:01:58]} 8. Qb3 {[%emt 0:00:05]} Bc5 {[%emt 0:05:07]} 9. d3
{[%emt 0:02:14]} Nf6 {[%emt 0:06:01]} 10. e4 {[%emt 0:01:28]} O-O {[%emt 0:02:
34]} 11. Be2 {[%emt 0:00:12]} Bb4+ {[%emt 0:04:22]} 12. Nbd2 {[%emt 0:12:10]}
a5 {[%emt 0:01:44]} 13. O-O {[%emt 0:09:15]} Nd7 {[%emt 0:02:35]} 14. Qd1 {
[%emt 0:05:19]} Bd6 {[%emt 0:02:39]} 15. Ne1 {[%emt 0:05:12]} Nc5 {[%emt 0:01:
06]} 16. Nb3 {[%emt 0:03:36]} Na6 {[%emt 0:02:41]} 17. Nd2 {[%emt 0:00:58]} Nc5
{[%emt 0:00:11]} 18. Nb3 {[%emt 0:00:05]} Na6 {[%emt 0:00:08]} 19. Nd2 {
[%emt 0:02:39]} 1/2-1/2